[Event "*** MasterClass Titled Tuesday Blitz"]
[Site "Chess.com"]
[Date "2017.11.07"]
[Round "1"]
[White "filali-oujda"]
[Black "GM_dmitrij"]
[Result "0-1"]
[WhiteElo "2338"]
[BlackElo "2605"]
[TimeControl "180+2"]
[EndTime "14:11:42 PST"]
[Termination "GM_dmitrij won by resignation"]

1. e4 {[%clk 0:03:01.6]} 1... e5 {[%clk 0:02:59.5]} 2. Nf3 {[%clk 0:03:01.8]}
2... Nc6 {[%clk 0:03:00.4]} 3. Bc4 {[%clk 0:03:03.1]} 3... Nf6 {[%clk
0:03:00.7]} 4. d4 {[%clk 0:03:02.6]} 4... exd4 {[%clk 0:03:00]} 5. Ng5 {[%clk
0:02:57.1]} 5... Ne5 {[%clk 0:02:54.4]} 6. Bb3 {[%clk 0:02:57.1]} 6... Bb4+
{[%clk 0:02:37.7]} 7. c3 {[%clk 0:02:57]} 7... dxc3 {[%clk 0:02:38.9]} 8. bxc3
{[%clk 0:02:58.9]} 8... Bc5 {[%clk 0:02:39.7]} 9. f4 {[%clk 0:02:59.8]} 9... Nc6
{[%clk 0:01:49.5]} 10. Nxf7 {[%clk 0:02:53.7]} 10... Qe7 {[%clk 0:01:49.1]} 11.
e5 {[%clk 0:02:54.8]} 11... Rf8 {[%clk 0:01:42.4]} 12. Ng5 {[%clk 0:02:52]}
12... d6 {[%clk 0:01:32.3]} 13. e6 {[%clk 0:02:37.8]} 13... h6 {[%clk
0:01:30.1]} 14. Nf3 {[%clk 0:02:12.4]} 14... Bxe6 {[%clk 0:01:30.5]} 15. Qe2
{[%clk 0:02:09.6]} 15... Bg4 {[%clk 0:01:23.4]} 16. Ba3 {[%clk 0:01:51.3]} 16...
Qxe2+ {[%clk 0:00:58.4]} 17. Kxe2 {[%clk 0:01:51.1]} 17... Bxa3 {[%clk
0:01:00.3]} 18. Nxa3 {[%clk 0:01:52.7]} 18... O-O-O {[%clk 0:01:02.2]} 19. Rae1
{[%clk 0:01:43.4]} 19... Nh5 {[%clk 0:00:57.3]} 20. g3 {[%clk 0:01:35.4]} 20...
Ne5 {[%clk 0:00:57.6]} 21. Be6+ {[%clk 0:01:28.4]} 21... Bxe6 {[%clk 0:00:56.2]}
22. fxe5 {[%clk 0:01:28.8]} 22... Bg4 {[%clk 0:00:56.4]} 23. Rhf1 {[%clk
0:01:30.3]} 23... dxe5 {[%clk 0:00:57.5]} 24. Ke3 {[%clk 0:01:24.9]} 24... Bxf3
{[%clk 0:00:58.9]} 25. Rxf3 {[%clk 0:01:26.8]} 25... Nf6 {[%clk 0:01:00.3]} 26.
Ke2 {[%clk 0:00:59.5]} 26... Ne4 {[%clk 0:00:55.9]} 27. Nc4 {[%clk 0:00:32.2]}
27... Rxf3 {[%clk 0:00:47.2]} 28. Kxf3 {[%clk 0:00:33.8]} 28... Nd2+ {[%clk
0:00:48.7]} 29. Nxd2 {[%clk 0:00:29.8]} 29... Rxd2 {[%clk 0:00:50.6]} 30. Rxe5
{[%clk 0:00:29.3]} 30... Rxh2 {[%clk 0:00:51.5]} 31. a4 {[%clk 0:00:28.3]} 31...
Kd7 {[%clk 0:00:51.8]} 32. Kg4 {[%clk 0:00:24.3]} 32... Rf2 {[%clk 0:00:48.5]}
33. Rd5+ {[%clk 0:00:21.1]} 33... Kc6 {[%clk 0:00:44.6]} 34. Rd4 {[%clk
0:00:22.2]} 34... Rf6 {[%clk 0:00:44.8]} 35. Kh5 {[%clk 0:00:22]} 35... a5
{[%clk 0:00:38.8]} 36. g4 {[%clk 0:00:23.3]} 36... b5 {[%clk 0:00:36.6]} 37. Kh4
{[%clk 0:00:23.4]} 37... bxa4 {[%clk 0:00:36]} 38. Rxa4 {[%clk 0:00:25.3]} 38...
Kb5 {[%clk 0:00:37]} 39. Rd4 {[%clk 0:00:26.3]} 39... a4 {[%clk 0:00:36.3]} 40.
Rd7 {[%clk 0:00:27.9]} 40... g5+ {[%clk 0:00:36.3]} 41. Kg3 {[%clk 0:00:28.3]}
41... a3 {[%clk 0:00:37.6]} 42. Rd2 {[%clk 0:00:27.6]} 42... Ra6 {[%clk
0:00:37.3]} 43. Ra2 {[%clk 0:00:27.3]} 43... Kc4 {[%clk 0:00:38.9]} 44. Rxa3
{[%clk 0:00:29]} 44... Rxa3 {[%clk 0:00:39.4]} 0-1

[Event "*** MasterClass Titled Tuesday Blitz"]
[Site "Chess.com"]
[Date "2017.11.07"]
[Round "1"]
[White "Margency"]
[Black "evgenysharapov"]
[Result "1-0"]
[WhiteElo "2523"]
[BlackElo "2244"]
[TimeControl "180+2"]
[EndTime "14:11:43 PST"]
[Termination "Margency won by resignation"]

1. e4 {[%clk 0:02:38.9]} 1... c5 {[%clk 0:03:00.2]} 2. Nf3 {[%clk 0:02:38.8]}
2... d6 {[%clk 0:03:00.9]} 3. d4 {[%clk 0:02:40.4]} 3... cxd4 {[%clk 0:03:01.6]}
4. Nxd4 {[%clk 0:02:42.3]} 4... Nf6 {[%clk 0:03:02.4]} 5. Nc3 {[%clk 0:02:43.8]}
5... Nc6 {[%clk 0:03:03.4]} 6. Bg5 {[%clk 0:02:44.7]} 6... Qb6 {[%clk
0:03:03.3]} 7. Bxf6 {[%clk 0:02:41.4]} 7... gxf6 {[%clk 0:03:03.4]} 8. Nb3
{[%clk 0:02:42.5]} 8... f5 {[%clk 0:03:04]} 9. Nd5 {[%clk 0:02:34.5]} 9... Qd8
{[%clk 0:03:03.2]} 10. Qe2 {[%clk 0:02:24]} 10... Bg7 {[%clk 0:02:56.3]} 11.
O-O-O {[%clk 0:02:22.2]} 11... O-O {[%clk 0:02:53.4]} 12. exf5 {[%clk
0:02:19.5]} 12... Bxf5 {[%clk 0:02:52.3]} 13. g4 {[%clk 0:02:20.9]} 13... Be6
{[%clk 0:02:42.3]} 14. f4 {[%clk 0:02:18.8]} 14... a5 {[%clk 0:02:37.8]} 15. a3
{[%clk 0:02:05.6]} 15... a4 {[%clk 0:02:35.1]} 16. Na1 {[%clk 0:02:06.5]} 16...
b5 {[%clk 0:02:27.3]} 17. c3 {[%clk 0:02:05.8]} 17... Nd4 {[%clk 0:02:06.5]} 18.
Qe4 {[%clk 0:01:45.4]} 18... Bxd5 {[%clk 0:01:49.5]} 19. Qxd5 {[%clk 0:01:44.7]}
19... e6 {[%clk 0:01:49.9]} 20. Qg2 {[%clk 0:01:34.6]} 20... Nb3+ {[%clk
0:01:47.2]} 21. Kb1 {[%clk 0:01:28.7]} 21... Qa5 {[%clk 0:01:27.8]} 22. Qf3
{[%clk 0:01:15.6]} 22... d5 {[%clk 0:01:23.1]} 23. f5 {[%clk 0:01:10]} 23... Qd8
{[%clk 0:00:47]} 24. Bd3 {[%clk 0:01:04.6]} 24... Nxa1 {[%clk 0:00:44.2]} 25.
Kxa1 {[%clk 0:01:04.8]} 25... b4 {[%clk 0:00:32.5]} 26. cxb4 {[%clk 0:00:59.5]}
26... e5 {[%clk 0:00:32.4]} 27. Bb1 {[%clk 0:00:55.4]} 27... e4 {[%clk
0:00:29.1]} 28. Qe2 {[%clk 0:00:52]} 28... Rc8 {[%clk 0:00:20.1]} 29. Ba2 {[%clk
0:00:49.8]} 29... Qf6 {[%clk 0:00:19.3]} 30. Rxd5 {[%clk 0:00:47.1]} 30... Rc3
{[%clk 0:00:19.8]} 31. g5 {[%clk 0:00:39.1]} 31... Qxg5 {[%clk 0:00:19.2]} 32.
bxc3 {[%clk 0:00:39.5]} 32... Bxc3+ {[%clk 0:00:19.3]} 33. Kb1 {[%clk
0:00:40.2]} 33... Bg7 {[%clk 0:00:19.3]} 34. Bc4 {[%clk 0:00:18]} 34... Qf6
{[%clk 0:00:19.6]} 35. Ka2 {[%clk 0:00:19.5]} 35... Rc8 {[%clk 0:00:19.2]} 36.
Rb1 {[%clk 0:00:20]} 36... Qc3 {[%clk 0:00:18]} 37. Rc5 {[%clk 0:00:17.8]} 37...
Rd8 {[%clk 0:00:17.2]} 38. Bxf7+ {[%clk 0:00:18.7]} 38... Kh8 {[%clk 0:00:17]}
39. Rxc3 {[%clk 0:00:19.9]} 1-0

[Event "*** MasterClass Titled Tuesday Blitz"]
[Site "Chess.com"]
[Date "2017.11.07"]
[Round "1"]
[White "NateSolon"]
[Black "Sam_ChessMood"]
[Result "1-0"]
[WhiteElo "2379"]
[BlackElo "2624"]
[TimeControl "180+2"]
[EndTime "14:11:48 PST"]
[Termination "NateSolon won on time"]

1. d4 {[%clk 0:03:01.9]} 1... Nf6 {[%clk 0:02:56.3]} 2. Bf4 {[%clk 0:03:02.5]}
2... d5 {[%clk 0:02:56.5]} 3. e3 {[%clk 0:03:03.3]} 3... c5 {[%clk 0:02:53.6]}
4. Nc3 {[%clk 0:03:04.2]} 4... cxd4 {[%clk 0:02:49.9]} 5. exd4 {[%clk
0:03:05.1]} 5... Bg4 {[%clk 0:02:50.7]} 6. Nf3 {[%clk 0:02:48.2]} 6... Nc6
{[%clk 0:02:44.7]} 7. Bb5 {[%clk 0:02:31.9]} 7... e6 {[%clk 0:02:43.1]} 8. h3
{[%clk 0:02:31.9]} 8... Bxf3 {[%clk 0:02:42.9]} 9. Qxf3 {[%clk 0:02:32.8]} 9...
a6 {[%clk 0:02:37.1]} 10. Bxc6+ {[%clk 0:02:33.6]} 10... bxc6 {[%clk 0:02:38.4]}
11. O-O {[%clk 0:02:32.7]} 11... Be7 {[%clk 0:02:38.6]} 12. Na4 {[%clk
0:02:15.5]} 12... O-O {[%clk 0:02:35.9]} 13. c3 {[%clk 0:02:14.6]} 13... a5
{[%clk 0:02:23.7]} 14. Rfe1 {[%clk 0:02:04.9]} 14... Nd7 {[%clk 0:02:23.2]} 15.
Rad1 {[%clk 0:01:49.6]} 15... Nb6 {[%clk 0:02:14]} 16. Nc5 {[%clk 0:01:50.5]}
16... Nd7 {[%clk 0:01:55.2]} 17. Nb7 {[%clk 0:01:43.6]} 17... Qb6 {[%clk
0:01:52.1]} 18. Nd6 {[%clk 0:01:39]} 18... Qxb2 {[%clk 0:01:45.1]} 19. Rb1
{[%clk 0:01:39.4]} 19... Qa3 {[%clk 0:01:44.1]} 20. Rb3 {[%clk 0:01:31.3]} 20...
Qxa2 {[%clk 0:01:22.5]} 21. Rb7 {[%clk 0:01:31.9]} 21... Rad8 {[%clk 0:01:23.6]}
22. Nf5 {[%clk 0:01:12.8]} 22... Bf6 {[%clk 0:01:22]} 23. Nd6 {[%clk 0:00:55.9]}
23... c5 {[%clk 0:01:13]} 24. dxc5 {[%clk 0:00:44.2]} 24... Nxc5 {[%clk
0:01:13.8]} 25. Rc7 {[%clk 0:00:45.7]} 25... Nd7 {[%clk 0:00:59.7]} 26. Nb7
{[%clk 0:00:46.6]} 26... Qa4 {[%clk 0:00:38.1]} 27. Nxd8 {[%clk 0:00:46.3]}
27... Rxd8 {[%clk 0:00:39.3]} 28. Ra7 {[%clk 0:00:43.7]} 28... Qc6 {[%clk
0:00:22.9]} 29. Bc7 {[%clk 0:00:39.9]} 29... Rc8 {[%clk 0:00:22]} 30. Bxa5
{[%clk 0:00:40.5]} 30... Nf8 {[%clk 0:00:17.2]} 31. Re3 {[%clk 0:00:39.6]} 31...
Ng6 {[%clk 0:00:17.5]} 32. g3 {[%clk 0:00:40.3]} 32... h6 {[%clk 0:00:18.1]} 33.
h4 {[%clk 0:00:41.3]} 33... Qe8 {[%clk 0:00:16.6]} 34. h5 {[%clk 0:00:42.3]}
34... Ne5 {[%clk 0:00:17.8]} 35. Qe2 {[%clk 0:00:43.1]} 35... Nc4 {[%clk
0:00:18.6]} 36. Rf3 {[%clk 0:00:43.7]} 36... Nxa5 {[%clk 0:00:17.4]} 37. Rxa5
{[%clk 0:00:45.6]} 37... Bxc3 {[%clk 0:00:17.5]} 38. Ra7 {[%clk 0:00:44.6]}
38... Bf6 {[%clk 0:00:17.4]} 39. Kg2 {[%clk 0:00:45.9]} 39... d4 {[%clk
0:00:18.1]} 40. Qe4 {[%clk 0:00:46.8]} 40... Qc6 {[%clk 0:00:15.7]} 41. Qg4
{[%clk 0:00:44.2]} 41... Ra8 {[%clk 0:00:12.8]} 42. Rxa8+ {[%clk 0:00:43.8]}
42... Qxa8 {[%clk 0:00:13.9]} 43. Kh2 {[%clk 0:00:45.7]} 43... Qd5 {[%clk
0:00:14.9]} 44. Rxf6 {[%clk 0:00:46.6]} 44... d3 {[%clk 0:00:14.9]} 45. Rf4
{[%clk 0:00:45.8]} 45... Qc5 {[%clk 0:00:02.5]} 46. Rd4 {[%clk 0:00:45.1]} 1-0

[Event "*** MasterClass Titled Tuesday Blitz"]
[Site "Chess.com"]
[Date "2017.11.07"]
[Round "1"]
[White "GameOverBro"]
[Black "Iball95"]
[Result "0-1"]
[WhiteElo "2303"]
[BlackElo "2574"]
[TimeControl "180+2"]
[EndTime "14:11:56 PST"]
[Termination "Iball95 won by resignation"]

1. e4 {[%clk 0:03:01.9]} 1... c5 {[%clk 0:03:00.3]} 2. Ne2 {[%clk 0:03:02]} 2...
Nc6 {[%clk 0:03:00.7]} 3. Nbc3 {[%clk 0:03:02.6]} 3... g6 {[%clk 0:03:01.8]} 4.
d4 {[%clk 0:03:02.8]} 4... cxd4 {[%clk 0:03:03.7]} 5. Nxd4 {[%clk 0:03:04.3]}
5... Bg7 {[%clk 0:03:05.2]} 6. Nde2 {[%clk 0:03:05.8]} 6... Nf6 {[%clk
0:03:06.3]} 7. g3 {[%clk 0:03:07.3]} 7... Rb8 {[%clk 0:03:06.9]} 8. Bg2 {[%clk
0:03:08.7]} 8... O-O {[%clk 0:03:07.9]} 9. a4 {[%clk 0:03:09.7]} 9... a6 {[%clk
0:03:08.6]} 10. O-O {[%clk 0:03:11.1]} 10... b5 {[%clk 0:03:10.1]} 11. axb5
{[%clk 0:03:12.9]} 11... axb5 {[%clk 0:03:12]} 12. h3 {[%clk 0:03:13.2]} 12...
d6 {[%clk 0:03:12]} 13. Be3 {[%clk 0:03:13.6]} 13... b4 {[%clk 0:03:03.9]} 14.
Nd5 {[%clk 0:03:14.2]} 14... Nxd5 {[%clk 0:03:04.9]} 15. exd5 {[%clk 0:03:16.1]}
15... Ne5 {[%clk 0:03:06.6]} 16. b3 {[%clk 0:03:16.3]} 16... Qc7 {[%clk
0:03:05.3]} 17. Bd4 {[%clk 0:03:06.3]} 17... Bb7 {[%clk 0:02:59.5]} 18. Qd2
{[%clk 0:03:00.9]} 18... Rfc8 {[%clk 0:02:57.8]} 19. Ra2 {[%clk 0:02:58.7]}
19... Ra8 {[%clk 0:02:42.9]} 20. Rfa1 {[%clk 0:02:59.2]} 20... Rxa2 {[%clk
0:02:42.4]} 21. Rxa2 {[%clk 0:03:01.1]} 21... Rb8 {[%clk 0:02:05.6]} 22. Ra4
{[%clk 0:02:56]} 22... Bc8 {[%clk 0:02:01]} 23. f4 {[%clk 0:02:48.9]} 23... Nd7
{[%clk 0:02:01.8]} 24. Bxg7 {[%clk 0:02:49.8]} 24... Kxg7 {[%clk 0:02:03.7]} 25.
Nd4 {[%clk 0:02:50]} 25... Qc5 {[%clk 0:01:59.5]} 26. Kh2 {[%clk 0:02:49.2]}
26... Nf6 {[%clk 0:01:52]} 27. Nc6 {[%clk 0:02:45.6]} 27... Rb7 {[%clk
0:01:49.1]} 28. Rxb4 {[%clk 0:02:44]} 28... Rxb4 {[%clk 0:01:46.7]} 29. Nxb4
{[%clk 0:02:45.9]} 29... Bf5 {[%clk 0:01:35.3]} 30. c4 {[%clk 0:02:32.2]} 30...
Qa5 {[%clk 0:01:31.4]} 31. g4 {[%clk 0:02:25.8]} 31... Bc8 {[%clk 0:01:26.4]}
32. g5 {[%clk 0:02:26]} 32... Nh5 {[%clk 0:01:09]} 33. Qd4+ {[%clk 0:02:26.7]}
33... Kg8 {[%clk 0:01:07.8]} 34. Nc6 {[%clk 0:02:27.4]} 34... Qe1 {[%clk
0:01:06.7]} 35. Qe4 {[%clk 0:02:03.5]} 35... Qg3+ {[%clk 0:00:59]} 36. Kh1
{[%clk 0:01:52.6]} 36... Bxh3 {[%clk 0:00:55.7]} 37. Nxe7+ {[%clk 0:01:45.2]}
37... Kf8 {[%clk 0:00:54.2]} 38. Nc6 {[%clk 0:01:37.6]} 38... Qxb3 {[%clk
0:00:27.5]} 39. Qd4 {[%clk 0:01:02.1]} 39... Bxg2+ {[%clk 0:00:24]} 40. Kxg2
{[%clk 0:01:04]} 40... Qg3+ {[%clk 0:00:25.2]} 41. Kf1 {[%clk 0:01:05.4]} 41...
Qxf4+ {[%clk 0:00:21]} 42. Ke2 {[%clk 0:00:58.4]} 42... Ng3+ {[%clk 0:00:21.1]}
43. Kd3 {[%clk 0:00:59.6]} 43... Qf3+ {[%clk 0:00:22.1]} 44. Kc2 {[%clk
0:00:59.8]} 44... Qe4+ {[%clk 0:00:22.3]} 45. Kb3 {[%clk 0:00:50.4]} 45... Qxd4
{[%clk 0:00:23.1]} 46. Nxd4 {[%clk 0:00:51.4]} 46... Ne4 {[%clk 0:00:24.7]} 47.
Kb4 {[%clk 0:00:52]} 47... Nxg5 {[%clk 0:00:25.6]} 48. Kb5 {[%clk 0:00:53.5]}
48... Ne4 {[%clk 0:00:25.3]} 49. Kc6 {[%clk 0:00:54]} 49... h5 {[%clk
0:00:26.4]} 50. Nb5 {[%clk 0:00:53.5]} 50... Ke7 {[%clk 0:00:27.5]} 51. Na7
{[%clk 0:00:47.4]} 51... h4 {[%clk 0:00:25.3]} 52. Nc8+ {[%clk 0:00:48.7]} 52...
Kd8 {[%clk 0:00:26.5]} 53. Nxd6 {[%clk 0:00:50]} 53... Nxd6 {[%clk 0:00:28.4]}
54. Kxd6 {[%clk 0:00:51.6]} 54... h3 {[%clk 0:00:30.3]} 55. c5 {[%clk 0:00:53]}
55... h2 {[%clk 0:00:31.8]} 56. c6 {[%clk 0:00:54.5]} 56... h1=Q {[%clk
0:00:33.4]} 0-1

[Event "*** MasterClass Titled Tuesday Blitz"]
[Site "Chess.com"]
[Date "2017.11.07"]
[Round "1"]
[White "hypert"]
[Black "Man-Chuk"]
[Result "0-1"]
[WhiteElo "2327"]
[BlackElo "2589"]
[TimeControl "180+2"]
[EndTime "14:12:12 PST"]
[Termination "Man-Chuk won by resignation"]

1. e4 {[%clk 0:03:01.9]} 1... e5 {[%clk 0:03:00.5]} 2. Nf3 {[%clk 0:03:02.6]}
2... Nc6 {[%clk 0:03:01.7]} 3. Bc4 {[%clk 0:03:03.1]} 3... Bc5 {[%clk
0:03:01.8]} 4. d3 {[%clk 0:03:03.5]} 4... Nf6 {[%clk 0:03:03]} 5. c3 {[%clk
0:03:04.1]} 5... h6 {[%clk 0:03:03.7]} 6. O-O {[%clk 0:03:04.2]} 6... d6 {[%clk
0:03:04.5]} 7. Nbd2 {[%clk 0:02:59.1]} 7... O-O {[%clk 0:03:04.5]} 8. h3 {[%clk
0:02:58.8]} 8... a5 {[%clk 0:03:05.3]} 9. a4 {[%clk 0:02:56.4]} 9... Be6 {[%clk
0:03:06.3]} 10. Re1 {[%clk 0:02:56.9]} 10... Ba7 {[%clk 0:02:51.1]} 11. Bxe6
{[%clk 0:02:52.7]} 11... fxe6 {[%clk 0:02:52]} 12. Qb3 {[%clk 0:02:54.3]} 12...
Qd7 {[%clk 0:02:52.1]} 13. Nc4 {[%clk 0:02:51.1]} 13... Nh5 {[%clk 0:02:43.2]}
14. Qb5 {[%clk 0:02:34.3]} 14... Nf4 {[%clk 0:02:20.1]} 15. Bxf4 {[%clk
0:02:29.4]} 15... Rxf4 {[%clk 0:02:22]} 16. d4 {[%clk 0:02:25.9]} 16... exd4
{[%clk 0:02:16.1]} 17. Nxd4 {[%clk 0:02:23.1]} 17... Raf8 {[%clk 0:02:07.3]} 18.
Re2 {[%clk 0:02:17.5]} 18... Bxd4 {[%clk 0:01:54.3]} 19. cxd4 {[%clk 0:02:17.9]}
19... Qf7 {[%clk 0:01:54.8]} 20. Qxb7 {[%clk 0:02:07.9]} 20... Rxf2 {[%clk
0:01:51.8]} 21. Rxf2 {[%clk 0:01:57.3]} 21... Qxf2+ {[%clk 0:01:51.8]} 22. Kh1
{[%clk 0:01:58.6]} 22... Nxd4 {[%clk 0:01:48.2]} 23. Qxc7 {[%clk 0:01:43.8]}
23... d5 {[%clk 0:01:37.1]} 24. exd5 {[%clk 0:01:32.1]} 24... exd5 {[%clk
0:01:39]} 25. Ne5 {[%clk 0:01:31.9]} 25... Ne6 {[%clk 0:01:18.9]} 26. Qc3 {[%clk
0:00:40.4]} 26... Nf4 {[%clk 0:01:18.5]} 27. Qf3 {[%clk 0:00:40.2]} 27... Qxb2
{[%clk 0:01:08.7]} 28. Re1 {[%clk 0:00:41.7]} 28... Qb4 {[%clk 0:00:34.1]} 29.
Rf1 {[%clk 0:00:33.1]} 29... Qe4 {[%clk 0:00:33.8]} 30. Qxe4 {[%clk 0:00:20.1]}
30... dxe4 {[%clk 0:00:34.9]} 31. Re1 {[%clk 0:00:22]} 31... Nd3 {[%clk
0:00:27]} 32. Re3 {[%clk 0:00:20.1]} 32... Nxe5 {[%clk 0:00:26.5]} 33. Rxe4
{[%clk 0:00:18.4]} 33... Nc6 {[%clk 0:00:23.5]} 34. Re6 {[%clk 0:00:18.6]} 34...
Rf6 {[%clk 0:00:24.4]} 35. Re8+ {[%clk 0:00:18.6]} 35... Kf7 {[%clk 0:00:25.7]}
36. Ra8 {[%clk 0:00:20]} 36... g5 {[%clk 0:00:26.5]} 37. Kh2 {[%clk 0:00:21.5]}
37... h5 {[%clk 0:00:27.7]} 38. Ra6 {[%clk 0:00:23.1]} 38... Kg6 {[%clk
0:00:27.7]} 39. g4 {[%clk 0:00:23.8]} 39... h4 {[%clk 0:00:28.3]} 40. Kg2 {[%clk
0:00:24.1]} 40... Rd6 {[%clk 0:00:29.1]} 41. Rb6 {[%clk 0:00:23.4]} 41... Kf6
{[%clk 0:00:29.4]} 42. Kf2 {[%clk 0:00:23.4]} 42... Re6 {[%clk 0:00:29.8]} 43.
Ra6 {[%clk 0:00:22.5]} 43... Ke5 {[%clk 0:00:30.1]} 44. Rb6 {[%clk 0:00:22.9]}
44... Kd4 {[%clk 0:00:29.9]} 45. Rb5 {[%clk 0:00:24.5]} 45... Rf6+ {[%clk
0:00:29.5]} 46. Ke2 {[%clk 0:00:24.5]} 46... Re6+ {[%clk 0:00:28.6]} 47. Kd2
{[%clk 0:00:24.1]} 47... Re5 {[%clk 0:00:29.9]} 48. Rb6 {[%clk 0:00:25]} 48...
Nb4 {[%clk 0:00:29.2]} 49. Rd6+ {[%clk 0:00:24.8]} 49... Kc4 {[%clk 0:00:28.7]}
50. Rf6 {[%clk 0:00:26]} 50... Kb3 {[%clk 0:00:28.6]} 0-1

[Event "*** MasterClass Titled Tuesday Blitz"]
[Site "Chess.com"]
[Date "2017.11.07"]
[Round "1"]
[White "oskariot"]
[Black "nOcHeaTiNgKiD"]
[Result "1-0"]
[WhiteElo "2498"]
[BlackElo "2187"]
[TimeControl "180+2"]
[EndTime "14:12:39 PST"]
[Termination "oskariot won by resignation"]

1. e4 {[%clk 0:03:01.9]} 1... c6 {[%clk 0:02:55.4]} 2. d4 {[%clk 0:03:00]} 2...
d5 {[%clk 0:02:53.8]} 3. e5 {[%clk 0:03:01]} 3... Bf5 {[%clk 0:02:54]} 4. Nf3
{[%clk 0:03:02.1]} 4... e6 {[%clk 0:02:54.6]} 5. Be2 {[%clk 0:03:03.7]} 5... Nd7
{[%clk 0:02:55]} 6. O-O {[%clk 0:03:05.3]} 6... h6 {[%clk 0:02:54.5]} 7. a4
{[%clk 0:02:59]} 7... a5 {[%clk 0:02:55.1]} 8. c3 {[%clk 0:02:51.2]} 8... Ne7
{[%clk 0:02:55]} 9. Na3 {[%clk 0:02:52.2]} 9... g5 {[%clk 0:02:49.8]} 10. Ne1
{[%clk 0:02:43.3]} 10... Qb6 {[%clk 0:02:38.6]} 11. Bh5 {[%clk 0:02:33.4]} 11...
Bg6 {[%clk 0:02:36.7]} 12. Nd3 {[%clk 0:02:23.4]} 12... Bg7 {[%clk 0:02:29.5]}
13. f4 {[%clk 0:02:22.3]} 13... gxf4 {[%clk 0:02:09.6]} 14. Bxf4 {[%clk
0:02:18.8]} 14... Qa6 {[%clk 0:01:58.6]} 15. Bxg6 {[%clk 0:02:03.8]} 15... Nxg6
{[%clk 0:01:59]} 16. Bg3 {[%clk 0:01:43.6]} 16... O-O {[%clk 0:01:46.9]} 17. Qd2
{[%clk 0:01:36.5]} 17... f6 {[%clk 0:01:40.9]} 18. Nf4 {[%clk 0:01:11.1]} 18...
Nxf4 {[%clk 0:01:37.7]} 19. Bxf4 {[%clk 0:01:12.6]} 19... Kh7 {[%clk 0:00:55.9]}
20. exf6 {[%clk 0:01:12.5]} 20... Rxf6 {[%clk 0:00:54.7]} 21. Bd6 {[%clk
0:00:58.1]} 21... b5 {[%clk 0:00:30.4]} 22. Qd3+ {[%clk 0:00:52.6]} 22... Kh8
{[%clk 0:00:29.5]} 23. Rxf6 {[%clk 0:00:40.9]} 23... Nxf6 {[%clk 0:00:29.6]} 24.
Qg6 {[%clk 0:00:38.5]} 24... Qb7 {[%clk 0:00:23.7]} 25. Rf1 {[%clk 0:00:32.5]}
25... Rg8 {[%clk 0:00:14.6]} 26. Rxf6 {[%clk 0:00:30]} 26... Bxf6 {[%clk
0:00:16]} 27. Qxf6+ {[%clk 0:00:31.3]} 27... Qg7 {[%clk 0:00:17.2]} 28. Qxg7+
{[%clk 0:00:21.3]} 28... Kxg7 {[%clk 0:00:19.1]} 29. axb5 {[%clk 0:00:21.1]}
29... cxb5 {[%clk 0:00:20.4]} 30. Nxb5 {[%clk 0:00:23]} 30... Rd8 {[%clk
0:00:21.3]} 31. Be5+ {[%clk 0:00:23.8]} 31... Kg6 {[%clk 0:00:22.4]} 32. Kf2
{[%clk 0:00:22.2]} 32... Kf5 {[%clk 0:00:22.7]} 33. Ke3 {[%clk 0:00:22.9]} 33...
a4 {[%clk 0:00:22.3]} 34. h3 {[%clk 0:00:22.8]} 34... h5 {[%clk 0:00:23.4]} 35.
Kf3 {[%clk 0:00:23.7]} 35... Kg6 {[%clk 0:00:23.2]} 36. g4 {[%clk 0:00:21.8]}
36... Rf8+ {[%clk 0:00:23.5]} 37. Kg3 {[%clk 0:00:22.4]} 37... h4+ {[%clk
0:00:19.9]} 38. Kg2 {[%clk 0:00:21.2]} 38... Kg5 {[%clk 0:00:18.9]} 39. Bd6
{[%clk 0:00:22.1]} 39... Rh8 {[%clk 0:00:14.5]} 40. Nc7 {[%clk 0:00:22.6]} 40...
Rh6 {[%clk 0:00:10.3]} 41. Be7+ {[%clk 0:00:21]} 41... Kf4 {[%clk 0:00:11.6]}
42. Bd6+ {[%clk 0:00:21.3]} 42... Ke3 {[%clk 0:00:11.5]} 43. g5 {[%clk
0:00:21.2]} 43... Rg6 {[%clk 0:00:12]} 44. Be7 {[%clk 0:00:22.5]} 44... Kd3
{[%clk 0:00:11.5]} 45. Kf3 {[%clk 0:00:12.6]} 45... Rg7 {[%clk 0:00:11.1]} 46.
Bd8 {[%clk 0:00:11.5]} 46... Rd7 {[%clk 0:00:05.9]} 47. Nxe6 {[%clk 0:00:12.4]}
47... Kc2 {[%clk 0:00:07.4]} 48. Bf6 {[%clk 0:00:13.1]} 48... Kxb2 {[%clk
0:00:07.9]} 49. Nc5 {[%clk 0:00:13.7]} 49... Rf7 {[%clk 0:00:07.9]} 50. Nxa4+
{[%clk 0:00:14.3]} 50... Kb3 {[%clk 0:00:09.5]} 51. Nb6 {[%clk 0:00:15.6]} 51...
Kxc3 {[%clk 0:00:10]} 52. Nxd5+ {[%clk 0:00:16.3]} 52... Kd3 {[%clk 0:00:11.5]}
53. Nf4+ {[%clk 0:00:18]} 53... Kc4 {[%clk 0:00:12.3]} 54. Kg4 {[%clk
0:00:19.5]} 54... Rf8 {[%clk 0:00:10.6]} 55. Kf5 {[%clk 0:00:20.9]} 1-0